[Event "57th Biel Festival MTO 2024"]
[White "Saine,Zachary"]
[Black "Gueci,Tea"]
[Site "Biel"]
[Round "3.46"]
[Annotator "RC"]
[Result "1/2-1/2"]
[Date "2024.07.17"]
[WhiteElo "2035"]
[BlackElo "2228"]
[PlyCount "118"]
[TimeControl "60"]

1. e4 {[%emt 0:3:46]} c5 {[%emt 0:0:3]} 2. Nf3 {[%emt 0:0:6]} d6 {[%emt 0:0:3]} 3. d4 {[%emt 0:0:5]} cxd4 {[%emt 0:0:2]} 4. Nxd4 {[%emt 0:0:6]} Nf6 {[%emt 0:0:4]} 5. Nc3 {[%emt 0:0:7]} a6 {[%emt 0:0:4]} 6. h3 {[%emt 0:1:10]} e6 {[%emt 0:0:14]} 7. Be3 {[%emt 0:1:17]} Be7 {[%emt 0:1:27]} 8. a4 {[%emt 0:2:19]} O-O {[%emt 0:4:40]} 9. Be2 {[%emt 0:5:38]} Nc6 {[%emt 0:1:52]} 10. f4 {[%emt 0:5:38]} Nxd4 {[%emt 0:8:12]} 11. Qxd4 {[%emt 0:5:51]} d5 {[%emt 0:5:10]} 12. exd5 {[%emt 0:5:20]} Nxd5 {[%emt 0:1:21]} 13. Nxd5 {[%emt 0:0:39]} Bh4+ {[%emt 0:6:44]} 14. Bf2 {[%emt 0:0:30]} exd5 {[%emt 0:5:34]} 15. O-O {[%emt 0:12:8]} Bf6 {[%emt 0:0:39]} 16. Qb4 {[%emt 0:0:51]} Bf5 {[%emt 0:13:55]} 17. c3 {[%emt 0:14:11]} Be4 {[%emt 0:4:30]} 18. Rad1 {[%emt 0:24:37]} Qc7 {[%emt 0:5:51]} 19. Bb6 {[%emt 0:0:43]} Qc6 {[%emt 0:5:4]} 20. Bd3 {[%emt 0:5:15]} Rfe8 {[%emt 0:4:45]} 21. a5 {[%emt 0:11:30]} h6 {[%emt 0:10:44]} 22. Qc5 {[%emt 0:1:23]} Qxc5+ {[%emt 0:12:3]} 23. Bxc5 {[%emt 0:0:4]} Rac8 {[%emt 0:0:16]} 24. Bb6 {[%emt 0:1:27]} Bd8 {[%emt 0:0:57]} 25. Bxd8 {[%emt 0:0:20]} Rexd8 {[%emt 0:0:30]} 26. g4 {[%emt 0:1:56]} f5 {[%emt 0:5:15]} 27. gxf5 {[%emt 0:2:3]} Kf7 {[%emt 0:0:5]} 28. Rfe1 {[%emt 0:0:17]} Kf6 {[%emt 0:2:54]} 29. Bxe4 {[%emt 0:1:26]} dxe4 {[%emt 0:0:4]} 30. Rxd8 {[%emt 0:0:7]} Rxd8 {[%emt 0:0:6]} 31. Rxe4 {[%emt 0:0:5]} Kxf5 {[%emt 0:5:23]} 32. Re7 {[%emt 0:3:30]} Rd1+ {[%emt 0:0:43]} 33. Kf2 {[%emt 0:0:13]} Rd2+ {[%emt 0:0:10]} 34. Kf3 {[%emt 0:0:11]} Rxb2 {[%emt 0:1:36]} 35. Rxg7 {[%emt 0:0:6]} Rb5 {[%emt 0:1:51]} 36. Rf7+ {[%emt 0:0:27]} Kg6 {[%emt 0:0:25]} 37. Rd7 {[%emt 0:1:46]} Rxa5 {[%emt 0:1:11]} 38. Rxb7 {[%emt 0:0:28]} Rc5 {[%emt 0:0:45]} 39. Ke4 {[%emt 0:1:13]} Rxc3 {[%emt 0:1:46]} 40. Rb6+ {[%emt 0:0:30]} Kg7 {[%emt 0:0:46]} 41. Rxa6 {[%emt 0:5:4]} Rxh3 {[%emt 0:1:18]} 42. Kf5 {[%emt 0:0:6]} Rf3 {[%emt 0:4:32]} 43. Ra7+ {[%emt 0:1:9]} Kf8 {[%emt 0:1:3]} 44. Rh7 {[%emt 0:0:12]} Rf1 {[%emt 0:1:28]} 45. Rxh6 {[%emt 0:0:16]} Kf7 {[%emt 0:0:33]} 46. Rh7+ {[%emt 0:0:8]} Kf8 {[%emt 0:1:25]} 47. Ra7 {[%emt 0:0:7]} Rf2 {[%emt 0:1:5]} 48. Kg5 {[%emt 0:0:9]} Rf1 {[%emt 0:1:4]} 49. f5 {[%emt 0:0:9]} Rf2 {[%emt 0:0:56]} 50. Kf6 {[%emt 0:0:21]} Kg8 {[%emt 0:0:9]} 51. Ra8+ {[%emt 0:0:20]} Kh7 {[%emt 0:0:6]} 52. Re8 {[%emt 0:0:42]} Rf1 {[%emt 0:4:13]} 53. Re2 {[%emt 0:2:54]} Kg8 {[%emt 0:3:50]} 54. Re8+ {[%emt 0:0:38]} Kh7 {[%emt 0:0:9]} 55. Rf8 {[%emt 0:0:5]} Ra1 {[%emt 0:0:48]} 56. Ke7 {[%emt 0:0:32]} Ra7+ {[%emt 0:1:6]} 57. Ke8 {[%emt 0:0:5]} Ra8+ {[%emt 0:0:17]} 58. Ke7 {[%emt 0:0:7]} Ra7+ {[%emt 0:0:3]} 59. Ke8 {[%emt 0:0:5]} Ra8+ {[%emt 0:0:6]} 1/2-1/2

[Event "57th Biel Festival MTO 2024"]
[White "Mostertman,Milan"]
[Black "Fronda,Jan Jodilyn"]
[Site "Biel"]
[Round "3.47"]
[Annotator "RC"]
[Result "0-1"]
[Date "2024.07.17"]
[WhiteElo "2231"]
[BlackElo "2072"]
[PlyCount "84"]
[TimeControl "60"]

1. e4 {[%emt 0:0:10]} c5 {[%emt 0:0:54]} 2. Nf3 {[%emt 0:0:13]} d6 {[%emt 0:0:32]} 3. d4 {[%emt 0:0:22]} cxd4 {[%emt 0:0:7]} 4. Nxd4 {[%emt 0:0:5]} Nf6 {[%emt 0:0:5]} 5. Nc3 {[%emt 0:0:5]} g6 {[%emt 0:0:17]} 6. Be3 {[%emt 0:0:37]} Bg7 {[%emt 0:0:25]} 7. f3 {[%emt 0:0:21]} Nbd7 {[%emt 0:1:11]} 8. Qd2 {[%emt 0:1:23]} a6 {[%emt 0:0:30]} 9. O-O-O {[%emt 0:1:5]} b5 {[%emt 0:1:50]} 10. g4 {[%emt 0:3:11]} Bb7 {[%emt 0:1:16]} 11. g5 {[%emt 0:7:9]} Nh5 {[%emt 0:0:15]} 12. Kb1 {[%emt 0:11:34]} Nb6 {[%emt 0:11:22]} 13. Qf2 {[%emt 0:7:20]} Nc4 {[%emt 0:10:17]} 14. Bxc4 {[%emt 0:2:11]} bxc4 {[%emt 0:0:6]} 15. Nde2 {[%emt 0:0:12]} O-O {[%emt 0:8:26]} 16. f4 {[%emt 0:19:25]} Rb8 {[%emt 0:3:38]} 17. Bd4 {[%emt 0:8:28]} Bxd4 {[%emt 0:9:58]} 18. Qxd4 {[%emt 0:1:20]} Qa5 {[%emt 0:0:25]} 19. Qxc4 {[%emt 0:13:41]} Rfc8 {[%emt 0:1:7]} 20. Qd3 {[%emt 0:0:6]} Qb6 {[%emt 0:11:14]} 21. b3 {[%emt 0:3:37]} a5 {[%emt 0:20:41]} 22. Nd5 {[%emt 0:1:41]} Bxd5 {[%emt 0:0:9]} 23. exd5 {[%emt 0:0:22]} a4 {[%emt 0:0:9]} 24. Rhf1 {[%emt 0:2:29]} Qa5 {[%emt 0:4:6]} 25. Qd2 {[%emt 0:1:15]} Qc5 {[%emt 0:0:45]} 26. f5 {[%emt 0:2:8]} Rb4 {[%emt 0:3:7]} 27. Rf3 {[%emt 0:8:47]} Rcb8 {[%emt 0:3:57]} 28. Rdf1 {[%emt 0:2:41]} R4b5 {[%emt 0:6:52]} 29. Rd3 {[%emt 0:0:49]} Rb4 {[%emt 0:1:22]} 30. f6 {[%emt 0:1:25]} axb3 {[%emt 0:5:15]} 31. cxb3 {[%emt 0:0:7]} Re4 {[%emt 0:0:19]} 32. Ng3 {[%emt 0:7:55]} Nxg3 {[%emt 0:2:50]} 33. hxg3 {[%emt 0:0:1]} Re8 {[%emt 0:1:4]} 34. Qf2 {[%emt 0:1:41]} Qb5 {[%emt 0:0:43]} 35. Rd2 {[%emt 0:1:19]} Re5 {[%emt 0:0:10]} 36. fxe7 {[%emt 0:1:12]} Rf5 {[%emt 0:0:16]} 37. Qxf5 {[%emt 0:0:55]} gxf5 {[%emt 0:0:3]} 38. Re1 {[%emt 0:0:4]} Qa5 {[%emt 0:1:7]} 39. Rde2 {[%emt 0:1:55]} Qxd5 {[%emt 0:0:11]} 40. Re3 {[%emt 0:0:8]} Kg7 {[%emt 0:1:9]} 41. a4 {[%emt 0:2:5]} Kg6 {[%emt 0:0:50]} 42. Kb2 {[%emt 0:0:11]} Qc5 {[%emt 0:0:42]} 0-1

[Event "57th Biel Festival MTO 2024"]
[White "Kwiatkowski,Jakub"]
[Black "Ohler,Julius"]
[Site "Biel"]
[Round "3.48"]
[Annotator "RC"]
[Result "1-0"]
[Date "2024.07.17"]
[WhiteElo "2024"]
[BlackElo "2078"]
[PlyCount "91"]
[TimeControl "60"]

1. e4 {[%emt 0:1:59]} c6 {[%emt 0:0:5]} 2. d4 {[%emt 0:0:9]} d5 {[%emt 0:0:5]} 3. e5 {[%emt 0:0:46]} Bf5 {[%emt 0:0:5]} 4. c4 {[%emt 0:0:12]} e6 {[%emt 0:0:8]} 5. Nc3 {[%emt 0:0:9]} Bb4 {[%emt 0:0:9]} 6. cxd5 {[%emt 0:0:14]} cxd5 {[%emt 0:14:20]} 7. h4 {[%emt 0:2:8]} h6 {[%emt 0:4:2]} 8. g4 {[%emt 0:1:38]} Bh7 {[%emt 0:4:58]} 9. Bd3 {[%emt 0:1:58]} Bxd3 {[%emt 0:4:15]} 10. Qxd3 {[%emt 0:1:25]} Ne7 {[%emt 0:7:34]} 11. h5 {[%emt 0:12:57]} Qa5 {[%emt 0:5:50]} 12. Nge2 {[%emt 0:2:14]} Nbc6 {[%emt 0:4:49]} 13. Bd2 {[%emt 0:6:53]} Qb6 {[%emt 0:14:29]} 14. O-O-O {[%emt 0:11:51]} Bxc3 {[%emt 0:8:46]} 15. Bxc3 {[%emt 0:4:15]} Nb4 {[%emt 0:0:19]} 16. Bxb4 {[%emt 0:4:42]} Qxb4 {[%emt 0:0:4]} 17. Kb1 {[%emt 0:0:18]} Rc8 {[%emt 0:2:5]} 18. f4 {[%emt 0:8:59]} Qc4 {[%emt 0:1:43]} 19. Qd2 {[%emt 0:2:39]} Kd7 {[%emt 0:11:18]} 20. Rhf1 {[%emt 0:4:20]} g6 {[%emt 0:4:15]} 21. Ng3 {[%emt 0:4:49]} Rhg8 {[%emt 0:0:55]} 22. Rh1 {[%emt 0:2:50]} g5 {[%emt 0:2:0]} 23. f5 {[%emt 0:1:17]} Nc6 {[%emt 0:3:16]} 24. Ne2 {[%emt 0:8:26]} Nb4 {[%emt 0:5:18]} 25. Nc3 {[%emt 0:0:17]} Rgf8 {[%emt 0:3:29]} 26. Rh3 {[%emt 0:3:41]} Qa6 {[%emt 0:3:22]} 27. Rf3 {[%emt 0:7:8]} Nc6 {[%emt 0:3:18]} 28. Rdf1 {[%emt 0:2:40]} Ke7 {[%emt 0:0:17]} 29. Ne2 {[%emt 0:2:45]} Qc4 {[%emt 0:2:5]} 30. Rc1 {[%emt 0:1:37]} Qa4 {[%emt 0:1:1]} 31. Ra3 {[%emt 0:1:27]} Qb5 {[%emt 0:0:17]} 32. Rc5 {[%emt 0:1:8]} Qb6 {[%emt 0:0:11]} 33. Rb3 {[%emt 0:1:22]} Qa6 {[%emt 0:0:11]} 34. Ra3 {[%emt 0:2:39]} Qb6 {[%emt 0:0:10]} 35. Nc3 {[%emt 0:0:33]} a6 {[%emt 0:1:12]} 36. Na4 {[%emt 0:3:15]} Qa7 {[%emt 0:0:15]} 37. Rac3 {[%emt 0:0:32]} Kd7 {[%emt 0:1:8]} 38. Rc1 {[%emt 0:1:24]} b5 {[%emt 0:0:25]} 39. Qc3 {[%emt 0:1:47]} Qb7 {[%emt 0:1:0]} 40. Rxc6 {[%emt 0:0:36]} Qxc6 {[%emt 0:0:27]} 41. Nc5+ {[%emt 0:50:20]} Ke7 {[%emt 0:2:18]} 42. Qa3 {[%emt 0:0:0]} Ke8 {[%emt 0:5:33]} 43. Nd3 {[%emt 0:0:0]} Qb7 {[%emt 0:1:41]} 44. Rxc8+ {[%emt 0:0:0]} Qxc8 {[%emt 0:0:5]} 45. f6 {[%emt 0:0:0]} Qb7 {[%emt 0:1:3]} 46. Qd6 {[%emt 0:0:0]} 1-0

[Event "57th Biel Festival MTO 2024"]
[White "Matsumura,Cocoro"]
[Black "Kersten,Uwe"]
[Site "Biel"]
[Round "3.49"]
[Annotator "RC"]
[Result "1/2-1/2"]
[Date "2024.07.17"]
[WhiteElo "2032"]
[BlackElo "2189"]
[PlyCount "88"]
[TimeControl "60"]

1. e4 {[%emt 0:0:3]} c5 {[%emt 0:0:38]} 2. Nf3 {[%emt 0:0:7]} d6 {[%emt 0:0:14]} 3. d4 {[%emt 0:0:4]} Nf6 {[%emt 0:0:15]} 4. Nc3 {[%emt 0:0:4]} cxd4 {[%emt 0:0:39]} 5. Nxd4 {[%emt 0:0:3]} Nc6 {[%emt 0:1:58]} 6. Bg5 {[%emt 0:0:5]} e6 {[%emt 0:0:28]} 7. Qd3 {[%emt 0:0:10]} Bd7 {[%emt 0:0:58]} 8. Ndb5 {[%emt 0:0:16]} Nb4 {[%emt 0:0:41]} 9. Qd1 {[%emt 0:0:9]} Qb8 {[%emt 0:0:52]} 10. Bxf6 {[%emt 0:0:43]} gxf6 {[%emt 0:0:21]} 11. g3 {[%emt 0:0:14]} Nc6 {[%emt 0:13:28]} 12. Bg2 {[%emt 0:1:34]} h5 {[%emt 0:5:36]} 13. h4 {[%emt 0:0:18]} Be7 {[%emt 0:0:45]} 14. O-O {[%emt 0:0:15]} a6 {[%emt 0:1:23]} 15. Nd4 {[%emt 0:0:5]} Nxd4 {[%emt 0:0:27]} 16. Qxd4 {[%emt 0:0:2]} Qa7 {[%emt 0:0:30]} 17. Qd3 {[%emt 0:8:29]} Rc8 {[%emt 0:0:49]} 18. Rfe1 {[%emt 0:2:17]} Qc5 {[%emt 0:6:55]} 19. Rad1 {[%emt 0:6:54]} Rc7 {[%emt 0:7:44]} 20. Rd2 {[%emt 0:8:46]} b5 {[%emt 0:10:12]} 21. a3 {[%emt 0:16:28]} Kf8 {[%emt 0:6:37]} 22. Kh2 {[%emt 0:2:33]} a5 {[%emt 0:6:54]} 23. Nd1 {[%emt 0:5:12]} Kg7 {[%emt 0:10:55]} 24. Ne3 {[%emt 0:1:1]} b4 {[%emt 0:0:40]} 25. axb4 {[%emt 0:0:7]} axb4 {[%emt 0:0:7]} 26. Qe2 {[%emt 0:1:14]} Bb5 {[%emt 0:3:58]} 27. Qd1 {[%emt 0:1:37]} Ra7 {[%emt 0:6:11]} 28. f4 {[%emt 0:2:13]} Ra2 {[%emt 0:2:37]} 29. f5 {[%emt 0:14:28]} Rxb2 {[%emt 0:10:16]} 30. fxe6 {[%emt 0:3:7]} fxe6 {[%emt 0:0:3]} 31. Qa1 {[%emt 0:0:54]} Qc3 {[%emt 0:0:16]} 32. Rf2 {[%emt 0:6:59]} Kf7 {[%emt 0:3:35]} 33. Rf3 {[%emt 0:3:3]} Ra2 {[%emt 0:6:11]} 34. Qxa2 {[%emt 0:1:25]} Qxe1 {[%emt 0:0:1]} 35. Nd5 {[%emt 0:3:47]} Rd8 {[%emt 0:2:19]} 36. Nf4 {[%emt 0:4:52]} Bd7 {[%emt 0:0:10]} 37. Qa5 {[%emt 0:1:19]} Rh8 {[%emt 0:1:11]} 38. Nxh5 {[%emt 0:1:49]} e5 {[%emt 0:1:26]} 39. Nxf6 {[%emt 0:11:20]} Bxf6 {[%emt 0:0:41]} 40. Qc7 {[%emt 0:0:0]} Ke7 {[%emt 0:0:50]} 41. Rd3 {[%emt 0:50:45]} d5 {[%emt 0:14:53]} 42. Rxd5 {[%emt 0:0:0]} Rxh4+ {[%emt 0:2:22]} 43. gxh4 {[%emt 0:0:0]} Qxh4+ {[%emt 0:0:7]} 44. Kg1 {[%emt 0:0:0]} Qe1+ {[%emt 0:0:24]} 1/2-1/2

[Event "57th Biel Festival MTO 2024"]
[White "Woltery,Nicolai"]
[Black "Frayna,Janelle Mae"]
[Site "Biel"]
[Round "3.50"]
[Annotator "RC"]
[Result "1/2-1/2"]
[Date "2024.07.17"]
[WhiteElo "2016"]
[BlackElo "2164"]
[PlyCount "56"]
[TimeControl "60"]

1. c4 {[%emt 0:0:2]} e6 {[%emt 0:0:23]} 2. Nc3 {[%emt 0:0:13]} d5 {[%emt 0:0:8]} 3. d4 {[%emt 0:0:9]} c6 {[%emt 0:1:8]} 4. e4 {[%emt 0:2:3]} dxe4 {[%emt 0:0:11]} 5. Nxe4 {[%emt 0:0:5]} Bb4+ {[%emt 0:0:3]} 6. Bd2 {[%emt 0:2:34]} Qxd4 {[%emt 0:1:1]} 7. Bxb4 {[%emt 0:0:7]} Qxe4+ {[%emt 0:0:3]} 8. Be2 {[%emt 0:0:28]} Na6 {[%emt 0:1:31]} 9. Ba5 {[%emt 0:1:39]} Bd7 {[%emt 0:12:50]} 10. Nf3 {[%emt 0:14:41]} Nf6 {[%emt 0:0:57]} 11. O-O {[%emt 0:3:0]} O-O {[%emt 0:5:51]} 12. Bc3 {[%emt 0:3:24]} Rfd8 {[%emt 0:0:57]} 13. Bxf6 {[%emt 0:15:1]} gxf6 {[%emt 0:0:6]} 14. Bd3 {[%emt 0:6:16]} Qf4 {[%emt 0:5:16]} 15. Re1 {[%emt 0:7:7]} Nc5 {[%emt 0:3:38]} 16. b4 {[%emt 0:5:42]} Nxd3 {[%emt 0:4:13]} 17. Qxd3 {[%emt 0:0:1]} Be8 {[%emt 0:0:10]} 18. Qc2 {[%emt 0:6:56]} c5 {[%emt 0:2:21]} 19. Re4 {[%emt 0:6:59]} Qf5 {[%emt 0:2:27]} 20. b5 {[%emt 0:2:18]} a6 {[%emt 0:9:41]} 21. h3 {[%emt 0:15:28]} axb5 {[%emt 0:5:14]} 22. cxb5 {[%emt 0:0:25]} Bxb5 {[%emt 0:1:31]} 23. Rg4+ {[%emt 0:0:57]} Kh8 {[%emt 0:7:54]} 24. Qb2 {[%emt 0:4:27]} Bc6 {[%emt 0:10:20]} 25. Rg5 {[%emt 0:0:34]} Qf4 {[%emt 0:0:1]} 26. Rg4 {[%emt 0:0:11]} Qf5 {[%emt 0:0:1]} 27. Rg5 {[%emt 0:0:10]} Qf4 {[%emt 0:0:11]} 28. Rg4 {[%emt 0:0:5]} Qf5 {[%emt 0:0:5]} 1/2-1/2

[Event "57th Biel Festival MTO 2024"]
[White "Tellarini,Lorenzo"]
[Black "Coles,Ruben"]
[Site "Biel"]
[Round "3.51"]
[Annotator "ChessBase"]
[Result "0-1"]
[Date "2024.07.17"]
[WhiteElo "1953"]
[BlackElo "2141"]
[PlyCount "80"]
[TimeControl "60"]

1. Nf3 {[%emt 0:0:2]} d5 {[%emt 0:3:10]} 2. g3 {[%emt 0:0:7]} Nf6 {[%emt 0:0:8]} 3. Bg2 {[%emt 0:0:6]} e6 {[%emt 0:0:3]} 4. d4 {[%emt 0:0:8]} Be7 {[%emt 0:0:5]} 5. c4 {[%emt 0:0:35]} O-O {[%emt 0:0:5]} 6. Nc3 {[%emt 0:0:5]} c6 {[%emt 0:0:3]} 7. O-O {[%emt 0:0:19]} a5 {[%emt 0:0:4]} 8. Qc2 {[%emt 0:3:49]} dxc4 {[%emt 0:0:56]} 9. Rd1 {[%emt 0:4:18]} b5 {[%emt 0:9:54]} 10. Ne5 {[%emt 0:12:55]} Nd5 {[%emt 0:3:37]} 11. a4 {[%emt 0:12:37]} f6 {[%emt 0:4:31]} 12. Ng4 {[%emt 0:5:23]} b4 {[%emt 0:5:52]} 13. Nb1 {[%emt 0:6:19]} b3 {[%emt 0:22:13]} 14. Qd2 {[%emt 0:9:25]} Bb4 {[%emt 0:4:57]} 15. Nc3 {[%emt 0:0:25]} h5 {[%emt 0:2:21]} 16. Ne3 {[%emt 0:2:15]} Nb6 {[%emt 0:1:20]} 17. Nf1 {[%emt 0:3:24]} Ra7 {[%emt 0:6:18]} 18. e4 {[%emt 0:7:18]} Rd7 {[%emt 0:6:36]} 19. Qe2 {[%emt 0:3:4]} Rxd4 {[%emt 0:11:8]} 20. Rxd4 {[%emt 0:1:22]} Qxd4 {[%emt 0:1:46]} 21. Be3 {[%emt 0:0:28]} Qd8 {[%emt 0:0:10]} 22. Qxh5 {[%emt 0:3:12]} Bxc3 {[%emt 0:1:47]} 23. bxc3 {[%emt 0:0:10]} e5 {[%emt 0:6:14]} 24. Bc5 {[%emt 0:2:21]} Rf7 {[%emt 0:3:24]} 25. Rd1 {[%emt 0:5:59]} N8d7 {[%emt 0:3:46]} 26. Bh3 {[%emt 0:9:0]} Qe8 {[%emt 0:1:32]} 27. Be3 {[%emt 0:7:0]} Nxa4 {[%emt 0:2:13]} 28. Bf5 {[%emt 0:3:35]} Nf8 {[%emt 0:1:34]} 29. Nd2 {[%emt 0:0:26]} Bxf5 {[%emt 0:1:14]} 30. exf5 {[%emt 0:0:8]} b2 {[%emt 0:3:8]} 31. Nb1 {[%emt 0:2:19]} Qb8 {[%emt 0:3:39]} 32. Qg4 {[%emt 0:1:28]} Qb3 {[%emt 0:0:42]} 33. Bd2 {[%emt 0:0:22]} Nc5 {[%emt 0:1:20]} 34. Be3 {[%emt 0:0:58]} Nd3 {[%emt 0:0:32]} 35. Rd2 {[%emt 0:1:22]} a4 {[%emt 0:0:42]} 36. Qd1 {[%emt 0:0:25]} Rb7 {[%emt 0:0:26]} 37. h4 {[%emt 0:2:19]} a3 {[%emt 0:0:18]} 38. h5 {[%emt 0:0:7]} Qxd1+ {[%emt 0:0:9]} 39. Rxd1 {[%emt 0:0:6]} a2 {[%emt 0:0:4]} 40. h6 {[%emt 0:0:37]} a1=Q {[%emt 0:0:10]} 0-1

[Event "57th Biel Festival MTO 2024"]
[White "Kaiser,Elmar"]
[Black "Mata,Adilson"]
[Site "Biel"]
[Round "3.52"]
[Annotator "RC"]
[Result "0-1"]
[Date "2024.07.17"]
[WhiteElo "2116"]
[BlackElo "1971"]
[PlyCount "128"]
[TimeControl "60"]

1. e4 {[%emt 0:0:4]} c5 {[%emt 0:3:59]} 2. Nf3 {[%emt 0:0:8]} d6 {[%emt 0:0:16]} 3. d4 {[%emt 0:0:12]} cxd4 {[%emt 0:0:6]} 4. Nxd4 {[%emt 0:0:6]} Nf6 {[%emt 0:0:5]} 5. Nc3 {[%emt 0:0:12]} a6 {[%emt 0:0:15]} 6. Bg5 {[%emt 0:0:55]} e6 {[%emt 0:0:10]} 7. f4 {[%emt 0:1:19]} Be7 {[%emt 0:0:53]} 8. Qf3 {[%emt 0:0:59]} Qc7 {[%emt 0:0:27]} 9. O-O-O {[%emt 0:0:28]} Nbd7 {[%emt 0:1:14]} 10. g4 {[%emt 0:2:35]} h6 {[%emt 0:5:20]} 11. Bxf6 {[%emt 0:1:13]} Bxf6 {[%emt 0:1:21]} 12. h4 {[%emt 0:3:19]} Nb6 {[%emt 0:1:36]} 13. g5 {[%emt 0:14:41]} Bxd4 {[%emt 0:2:49]} 14. Rxd4 {[%emt 0:0:12]} Qc5 {[%emt 0:0:32]} 15. Rd3 {[%emt 0:25:52]} Bd7 {[%emt 0:6:52]} 16. Bh3 {[%emt 0:3:3]} Nc4 {[%emt 0:9:13]} 17. Ne2 {[%emt 0:7:1]} hxg5 {[%emt 0:17:23]} 18. hxg5 {[%emt 0:0:14]} Qb4 {[%emt 0:4:5]} 19. Rb3 {[%emt 0:6:35]} Qd2+ {[%emt 0:0:20]} 20. Kb1 {[%emt 0:0:4]} Bc6 {[%emt 0:0:45]} 21. Rc3 {[%emt 0:4:55]} d5 {[%emt 0:4:25]} 22. Rxc4 {[%emt 0:21:22]} dxc4 {[%emt 0:0:45]} 23. Nc3 {[%emt 0:0:10]} O-O-O {[%emt 0:1:47]} 24. a3 {[%emt 0:1:0]} Qd4 {[%emt 0:6:7]} 25. f5 {[%emt 0:2:32]} exf5 {[%emt 0:2:10]} 26. Qxf5+ {[%emt 0:0:39]} Bd7 {[%emt 0:0:33]} 27. Qf3 {[%emt 0:2:4]} Bxh3 {[%emt 0:5:37]} 28. Rxh3 {[%emt 0:0:5]} Rxh3 {[%emt 0:0:32]} 29. Qxh3+ {[%emt 0:0:8]} Kb8 {[%emt 0:0:12]} 30. Qf5 {[%emt 0:2:40]} f6 {[%emt 0:6:53]} 31. gxf6 {[%emt 0:0:51]} gxf6 {[%emt 0:0:49]} 32. Ka2 {[%emt 0:5:20]} Qe5 {[%emt 0:1:14]} 33. Qf2 {[%emt 0:1:25]} Rh8 {[%emt 0:1:51]} 34. Qb6 {[%emt 0:0:56]} Rc8 {[%emt 0:6:54]} 35. Qf2 {[%emt 0:0:56]} Rd8 {[%emt 0:0:41]} 36. Qb6 {[%emt 0:0:52]} Qd6 {[%emt 0:2:35]} 37. Qf2 {[%emt 0:0:18]} Rh8 {[%emt 0:2:1]} 38. Qg2 {[%emt 0:2:48]} Qh2 {[%emt 0:5:49]} 39. Qg7 {[%emt 0:0:7]} Rc8 {[%emt 0:0:9]} 40. Qxf6 {[%emt 0:1:31]} Qxc2 {[%emt 0:0:10]} 41. Qd6+ {[%emt 0:3:29]} Ka8 {[%emt 0:1:32]} 42. Qb6 {[%emt 0:4:58]} Re8 {[%emt 0:3:9]} 43. Nd5 {[%emt 0:7:8]} Qb3+ {[%emt 0:0:20]} 44. Qxb3 {[%emt 0:1:15]} cxb3+ {[%emt 0:0:2]} 45. Kxb3 {[%emt 0:0:11]} Rxe4 {[%emt 0:0:3]} 46. Kc3 {[%emt 0:0:30]} Rh4 {[%emt 0:0:15]} 47. a4 {[%emt 0:2:42]} Kb8 {[%emt 0:0:45]} 48. b3 {[%emt 0:1:21]} Kc8 {[%emt 0:0:22]} 49. Nb6+ {[%emt 0:5:37]} Kc7 {[%emt 0:0:17]} 50. Nc4 {[%emt 0:1:10]} Rh5 {[%emt 0:4:52]} 51. Kb4 {[%emt 0:1:7]} b6 {[%emt 0:3:37]} 52. Kc3 {[%emt 0:0:25]} Rh3+ {[%emt 0:1:32]} 53. Kb4 {[%emt 0:1:9]} a5+ {[%emt 0:0:16]} 54. Ka3 {[%emt 0:0:25]} Kc6 {[%emt 0:0:26]} 55. Ne5+ {[%emt 0:1:30]} Kd5 {[%emt 0:0:55]} 56. Nc4 {[%emt 0:1:3]} Kc5 {[%emt 0:0:36]} 57. Ne5 {[%emt 0:0:34]} Re3 {[%emt 0:2:53]} 58. Nc4 {[%emt 0:0:24]} Re4 {[%emt 0:1:34]} 59. Nd2 {[%emt 0:5:32]} Rf4 {[%emt 0:0:14]} 60. Nb1 {[%emt 0:1:2]} Kd4 {[%emt 0:0:38]} 61. Nd2 {[%emt 0:21:55]} Kd3 {[%emt 0:15:11]} 62. Nb1 {[%emt 0:0:16]} Rf2 {[%emt 0:7:25]} 63. b4 {[%emt 0:0:51]} axb4+ {[%emt 0:0:57]} 64. Kb3 {[%emt 0:0:15]} Rc2 {[%emt 0:1:40]} 0-1

[Event "57th Biel Festival MTO 2024"]
[White "Tkhoruk,Roman"]
[Black "Erne,Raphael"]
[Site "Biel"]
[Round "3.53"]
[Annotator "RC"]
[Result "1/2-1/2"]
[Date "2024.07.17"]
[WhiteElo "1944"]
[BlackElo "2102"]
[PlyCount "115"]
[TimeControl "60"]

1. Nf3 {[%emt 0:0:5]} d5 {[%emt 0:0:14]} 2. g3 {[%emt 0:0:30]} c6 {[%emt 0:0:19]} 3. Bg2 {[%emt 0:0:10]} Bg4 {[%emt 0:0:17]} 4. O-O {[%emt 0:0:34]} Nf6 {[%emt 0:1:24]} 5. d3 {[%emt 0:0:29]} e6 {[%emt 0:1:13]} 6. Nbd2 {[%emt 0:1:7]} Nbd7 {[%emt 0:1:20]} 7. c3 {[%emt 0:1:52]} Be7 {[%emt 0:2:39]} 8. Re1 {[%emt 0:0:39]} O-O {[%emt 0:1:36]} 9. Qc2 {[%emt 0:0:46]} Qc7 {[%emt 0:5:37]} 10. e4 {[%emt 0:5:11]} e5 {[%emt 0:8:12]} 11. Nf1 {[%emt 0:11:36]} dxe4 {[%emt 0:7:27]} 12. dxe4 {[%emt 0:0:15]} Rfd8 {[%emt 0:11:40]} 13. Be3 {[%emt 0:13:12]} a5 {[%emt 0:3:50]} 14. h3 {[%emt 0:1:43]} Be6 {[%emt 0:10:12]} 15. g4 {[%emt 0:15:43]} Nc5 {[%emt 0:7:55]} 16. Ng3 {[%emt 0:8:9]} Bc4 {[%emt 0:1:54]} 17. Bf1 {[%emt 0:1:55]} Bxf1 {[%emt 0:4:49]} 18. Rxf1 {[%emt 0:0:20]} b5 {[%emt 0:2:51]} 19. g5 {[%emt 0:5:36]} Ne8 {[%emt 0:0:43]} 20. Rfd1 {[%emt 0:2:7]} Ne6 {[%emt 0:3:51]} 21. Rxd8 {[%emt 0:1:28]} Rxd8 {[%emt 0:1:17]} 22. Rd1 {[%emt 0:0:47]} Rxd1+ {[%emt 0:6:45]} 23. Qxd1 {[%emt 0:0:20]} g6 {[%emt 0:0:45]} 24. Qd2 {[%emt 0:6:49]} a4 {[%emt 0:8:9]} 25. c4 {[%emt 0:16:43]} Nd6 {[%emt 0:6:6]} 26. cxb5 {[%emt 0:6:7]} Nxb5 {[%emt 0:1:38]} 27. Ne2 {[%emt 0:2:0]} c5 {[%emt 0:3:20]} 28. Qc2 {[%emt 0:0:41]} Qa5 {[%emt 0:5:8]} 29. Bd2 {[%emt 0:1:24]} Qa8 {[%emt 0:2:9]} 30. Nxe5 {[%emt 0:1:9]} Bxg5 {[%emt 0:1:2]} 31. Bxg5 {[%emt 0:0:52]} Nxg5 {[%emt 0:0:4]} 32. Qxc5 {[%emt 0:0:26]} Qxe4 {[%emt 0:0:22]} 33. Qxb5 {[%emt 0:0:27]} Qxe5 {[%emt 0:1:35]} 34. Qxe5 {[%emt 0:0:16]} Nf3+ {[%emt 0:0:2]} 35. Kg2 {[%emt 0:0:23]} Nxe5 {[%emt 0:0:2]} 36. Nc3 {[%emt 0:0:13]} a3 {[%emt 0:0:36]} 37. bxa3 {[%emt 0:0:30]} Kf8 {[%emt 0:0:37]} 38. f4 {[%emt 0:0:58]} Nc4 {[%emt 0:0:26]} 39. a4 {[%emt 0:2:48]} Ke7 {[%emt 0:0:3]} 40. Kf3 {[%emt 0:1:4]} f5 {[%emt 0:1:45]} 41. Ke2 {[%emt 0:3:38]} Kd6 {[%emt 0:2:1]} 42. Kd3 {[%emt 0:0:23]} Kc5 {[%emt 0:1:49]} 43. Nd1 {[%emt 0:2:1]} Nb6 {[%emt 0:2:21]} 44. a5 {[%emt 0:1:1]} Nd5 {[%emt 0:0:30]} 45. Nf2 {[%emt 0:7:7]} Nxf4+ {[%emt 0:0:21]} 46. Kc3 {[%emt 0:0:11]} Nd5+ {[%emt 0:1:43]} 47. Kd3 {[%emt 0:2:8]} Nf4+ {[%emt 0:14:0]} 48. Ke3 {[%emt 0:2:17]} g5 {[%emt 0:1:29]} 49. a6 {[%emt 0:3:43]} Nd5+ {[%emt 0:4:50]} 50. Kf3 {[%emt 0:0:35]} Kb6 {[%emt 0:0:47]} 51. h4 {[%emt 0:0:55]} h6 {[%emt 0:13:6]} 52. hxg5 {[%emt 0:0:29]} hxg5 {[%emt 0:0:6]} 53. Ng4 {[%emt 0:0:13]} f4 {[%emt 0:6:8]} 54. Nf2 {[%emt 0:0:29]} Nf6 {[%emt 0:1:18]} 55. Nh3 {[%emt 0:0:17]} g4+ {[%emt 0:0:58]} 56. Kxf4 {[%emt 0:0:7]} gxh3 {[%emt 0:0:6]} 57. Kg3 {[%emt 0:0:10]} Kxa6 {[%emt 0:0:5]} 58. a4 {[%emt 0:0:16]} 1/2-1/2

[Event "57th Biel Festival MTO 2024"]
[White "Lyutsinger,Iren"]
[Black "Pinelli,Gian"]
[Site "Biel"]
[Round "3.54"]
[Annotator "RC"]
[Result "1-0"]
[Date "2024.07.17"]
[WhiteElo "2069"]
[BlackElo "1874"]
[PlyCount "43"]
[TimeControl "60"]

1. e4 {[%emt 0:0:3]} c6 {[%emt 0:0:5]} 2. d4 {[%emt 0:0:9]} d5 {[%emt 0:0:5]} 3. e5 {[%emt 0:0:6]} c5 {[%emt 0:0:8]} 4. dxc5 {[%emt 0:0:9]} e6 {[%emt 0:0:7]} 5. Bd3 {[%emt 0:0:6]} Bxc5 {[%emt 0:1:38]} 6. Qg4 {[%emt 0:0:10]} g6 {[%emt 0:2:20]} 7. Nf3 {[%emt 0:1:11]} Nc6 {[%emt 0:2:46]} 8. a3 {[%emt 0:2:18]} Qc7 {[%emt 0:4:33]} 9. Qg3 {[%emt 0:6:2]} Nd4 {[%emt 0:7:32]} 10. Nbd2 {[%emt 0:3:37]} Nc6 {[%emt 0:14:26]} 11. O-O {[%emt 0:2:19]} a6 {[%emt 0:3:36]} 12. b4 {[%emt 0:3:8]} Bf8 {[%emt 0:0:45]} 13. c4 {[%emt 0:1:0]} dxc4 {[%emt 0:5:44]} 14. Nxc4 {[%emt 0:0:56]} Bg7 {[%emt 0:5:30]} 15. Be3 {[%emt 0:4:39]} b5 {[%emt 0:5:25]} 16. Nd6+ {[%emt 0:1:36]} Kf8 {[%emt 0:1:31]} 17. Rac1 {[%emt 0:0:8]} Nge7 {[%emt 0:2:9]} 18. Be4 {[%emt 0:2:26]} Nd5 {[%emt 0:9:7]} 19. Bxd5 {[%emt 0:6:18]} exd5 {[%emt 0:0:11]} 20. Qf4 {[%emt 0:0:35]} Be6 {[%emt 0:3:2]} 21. Ng5 {[%emt 0:0:36]} Kg8 {[%emt 0:0:52]} 22. Nxe6 {[%emt 0:0:27]} 1-0